bitfinex-derivatives/quotes_ETHF0:USTF0_20250331
["timestamp","ask_amount","ask_price","bid_price","bid_amount"]
[1743433680928,3.2078,1851.2,1851.0,1.08056]
[1743433681117,3.2078,1851.2,1850.9,2.506]
[1743433681317,1.08054,1851.1,1850.9,1.08061]
[1743433681523,1.08054,1851.1,1850.9,1.08872688]
[1743433681826,4.29369929,1851.2,1850.9,1.08872688]
[1743433682024,1.08052,1851.1,1850.9,1.08872688]
[1743433682219,4.29369929,1851.2,1850.9,1.08872688]
[1743433682420,1.08053,1851.1,1850.9,1.08872688]
[1743433682719,3.2078,1851.0,1850.9,1.08873688]
[1743433683315,3.2078,1851.0,1850.9,0.00811688]
[1743433683525,8.98338,1851.0,1850.9,0.00811688]
[1743433683730,1.08072,1850.8,1850.5,1.08083]
[1743433683923,3.2078,1850.6,1850.4,1.4254]
[1743433684427,3.2078,1850.6,1850.1,1.4283]
[1743433684622,3.2078,1850.2,1850.0,1.4963]
[1743433684829,3.2078,1850.4,1850.2,0.00811688]
[1743433685129,1.08099,1850.3,1850.2,0.00811688]
[1743433685523,2.52489,1850.3,1850.2,0.00811688]
[1743433686126,1.08117,1850.0,1849.5,4.6572]
[1743433686326,1.08117,1850.0,1849.8,1.08127]
[1743433686327,4.28897,1850.0,1849.8,1.08127]
[1743433686526,3.2078,1850.0,1849.8,1.08127]
[1743433686727,3.2078,1850.0,1849.9,1.08122]
[1743433687124,3.2078,1850.0,1849.6,1.4963]
[1743433687331,3.2078,1849.8,1849.7,1.08132]
[1743433687733,4.7106,1849.8,1849.7,1.08132]
[1743433688031,4.7106,1849.8,1849.6,0.00811688]
[1743433688335,4.7106,1849.8,1849.6,1.08948688]
[1743433688336,5.7919,1849.8,1849.6,1.08948688]
[1743433688527,4.7106,1849.8,1849.6,0.00811688]
[1743433688727,1.08134,1849.7,1849.6,0.00811688]
[1743433688929,7.24014,1849.7,1849.6,0.00811688]
[1743433689323,8.56934,1849.7,1849.6,0.00811688]
[1743433689643,1.0815,1849.5,1849.3,1.08156]
[1743433689936,5.79211,1849.4,1849.2,1.0816]
[1743433690234,4.7106,1849.4,1849.0,1.4788]
[1743433690438,3.2078,1849.2,1849.1,1.08169]
[1743433690935,4.6384,1849.2,1849.1,1.08169]
[1743433691636,4.6384,1849.2,1849.0,1.08980688]
[1743433691827,1.08169,1849.1,1849.0,0.00811688]
[1743433692139,3.89519,1849.1,1849.0,0.00811688]
[1743433693732,6.39519,1849.1,1849.0,0.00811688]
[1743433695034,8.50419,1849.1,1849.0,0.00811688]
[1743433695239,11.00419,1849.1,1849.0,0.00811688]
[1743433695443,8.50419,1849.1,1849.0,0.00811688]
[1743433696635,2.8135,1849.1,1849.0,1.08986688]
[1743433697042,1.4306,1849.1,1849.0,1.08986688]
[1743433697848,2.51229,1849.1,1849.0,0.00811688]
[1743433698039,1.4306,1849.1,1849.0,0.00811688]
[1743433698443,2.51229,1849.1,1849.0,0.00811688]
[1743433698743,1.4306,1849.1,1849.0,0.00811688]
[1743433698946,1.4306,1849.1,1849.0,1.08986688]
[1743433699441,3.2078,1849.2,1849.0,1.08981688]
[1743433699637,4.28948,1849.2,1849.0,0.00811688]
[1743433699844,1.4884,1849.1,1849.0,1.08986688]
[1743433700140,2.57009,1849.1,1849.0,0.00811688]
[1743433700332,2.57009,1849.1,1848.3,1.4376]
[1743433700333,5.3275,1849.1,1848.3,1.08213]
[1743433700536,3.2078,1848.5,1848.2,2.21602]
[1743433700737,3.2078,1848.3,1848.2,2.21602]
[1743433700942,4.28996,1848.3,1848.2,2.21602]
[1743433701147,4.6962,1848.3,1848.2,2.21602]
[1743433701447,4.6962,1848.3,1848.2,1.13385]
[1743433701638,5.77836,1848.3,1848.2,1.13385]
[1743433701945,5.77836,1848.3,1848.2,2.21607]
[1743433702248,5.77836,1848.3,1848.2,1.13385]
[1743433705755,10.35136,1848.3,1848.2,1.13385]
[1743433706946,12.85136,1848.3,1848.2,1.13385]
[1743433707150,1.08222,1848.2,1848.1,0.00811688]
[1743433707359,1.08251,1847.7,1847.6,1.08255]
[1743433707651,1.08257,1847.6,1847.5,2.52998]
[1743433707949,2.45627,1847.6,1847.5,2.52998]
[1743433708155,2.45627,1847.6,1847.5,1.4474]
[1743433708349,1.08268,1847.4,1847.3,1.0827]
[1743433708656,1.3737,1847.6,1847.4,0.00811688]
[1743433708657,4.29043,1847.5,1847.4,0.00811688]
[1743433708848,10.27343,1847.5,1847.4,0.00811688]
[1743433710252,0.00811688,1847.6,1847.4,0.00811688]
[1743433710450,0.00811688,1847.6,1847.4,1.09079688]
[1743433710451,4.575,1847.5,1847.4,1.09079688]
[1743433710655,7.7828,1847.5,1847.4,1.09079688]
[1743433711964,3.2078,1847.5,1847.4,1.09079688]
[1743433712257,4.29043,1847.5,1847.4,0.00811688]
[1743433712447,3.2078,1847.5,1847.4,1.09079688]
[1743433712652,7.7828,1847.5,1847.4,0.00811688]
[1743433712851,4.575,1847.5,1847.4,1.09079688]
[1743433713158,4.58311688,1847.6,1847.5,1.08263]
[1743433713349,5.66568688,1847.6,1847.5,1.506]
[1743433713555,1.08263,1847.5,1847.4,0.00811688]
[1743433713756,3.2078,1847.5,1847.4,1.09079688]
[1743433714261,4.29043,1847.5,1847.4,0.00811688]
[1743433718058,3.2078,1847.5,1847.4,0.00811688]
[1743433718365,4.29043,1847.5,1847.4,1.09079688]
[1743433718564,7.7838,1847.5,1847.4,1.09079688]
[1743433718763,8.86643,1847.5,1847.4,1.09079688]
[1743433718962,8.86643,1847.5,1847.4,0.00811688]
[1743433719665,3.2078,1847.5,1847.4,1.09079688]
[1743433719867,7.7838,1847.5,1847.4,1.09079688]
[1743433720069,8.86643,1847.5,1847.4,1.09079688]
[1743433720259,7.7838,1847.5,1847.4,1.09079688]
[1743433720766,8.86643,1847.5,1847.4,1.09079688]
[1743433721866,8.86643,1847.5,1847.4,0.00811688]
[1743433725270,10.30003,1847.5,1847.4,0.00811688]
[1743433726567,3.2078,1847.5,1847.4,1.09079688]
[1743433726766,4.29043,1847.5,1847.4,1.09079688]
[1743433726975,4.29043,1847.5,1847.4,0.00811688]
[1743433727262,4.29043,1847.5,1847.4,2.51649688]
[1743433727768,4.29043,1847.5,1847.4,1.43381688]
[1743433728460,4.29043,1847.5,1847.4,2.51649688]
[1743433728665,4.29043,1847.5,1847.4,1.43381688]
[1743433729262,4.29043,1847.5,1847.4,0.00811688]
[1743433733069,1.08292,1847.0,1846.9,2.47386]
[1743433733269,4.29072,1847.0,1846.9,2.10117717]
[1743433733471,1.08298,1846.9,1846.8,1.08303]
[1743433733664,1.08298,1846.9,1846.8,1.7934857]
[1743433734264,1.08298,1846.9,1846.8,0.71093294]
[1743433734476,2.70769,1846.8,1846.4,1.08323]
[1743433734670,1.08324,1846.5,1846.4,2.47413]
[1743433734871,1.08324,1846.5,1846.4,3.18536828]
[1743433735276,2.53384,1846.5,1846.4,3.18536828]
[1743433735570,2.53384,1846.5,1846.4,0.71123828]
[1743433735774,2.53384,1846.5,1846.4,1.79450828]
[1743433736075,2.53384,1846.5,1846.4,0.71123828]
[1743433736373,1.08327,1846.4,1846.3,1.4424]
[1743433736570,5.77167,1846.4,1846.3,2.15295669]
[1743433736974,5.77167,1846.4,1846.3,3.23628669]
[1743433737174,5.77167,1846.4,1846.3,2.15295669]
[1743433737772,5.77167,1846.4,1846.3,1.4424]
[1743433737973,1.08343,1846.2,1845.8,2.70905]
[1743433738178,4.29123,1846.2,1846.1,1.08343]
[1743433738371,1.0835,1846.1,1846.0,1.08349]
[1743433738572,3.2078,1846.2,1846.0,0.70968157]
[1743433738776,3.2078,1846.2,1845.9,1.4424]
[1743433738777,9.1477,1846.2,1845.9,1.4424]
[1743433739072,1.08346,1846.1,1846.0,1.08347]
[1743433739276,1.08351,1846.0,1845.9,2.52592]
[1743433739471,4.29131,1846.0,1845.9,1.4424]
[1743433739779,4.29131,1846.0,1845.9,2.52596]
[1743433740178,1.08356,1845.9,1845.8,1.3736]
[1743433740378,2.44746,1845.9,1845.8,1.4414]
[1743433740575,1.08367,1845.8,1845.4,2.8318]
[1743433740877,5.65537,1845.8,1845.6,1.08371]
[1743433741075,3.2078,1845.8,1845.7,2.52508]
[1743433741267,4.5717,1846.0,1845.8,1.08359]
[1743433741474,3.2078,1846.2,1845.9,1.08356]
[1743433741781,4.29132,1846.0,1845.9,1.08356]
[1743433741983,3.2078,1846.0,1845.9,1.08356]
[1743433742782,4.577,1846.1,1846.0,1.08346]
[1743433743081,4.577,1846.1,1845.6,5.41871]
[1743433743082,3.2078,1846.1,1845.9,1.3262]
[1743433743385,1.08359,1845.9,1845.5,2.7095]
[1743433743683,1.4803,1846.0,1845.9,1.08356]
[1743433743983,2.56381,1846.0,1845.6,2.70929]
[1743433744176,2.56381,1846.0,1845.9,1.08356]
[1743433744583,2.56381,1846.0,1845.8,1.08358]
[1743433744778,3.2078,1845.9,1845.8,1.08358]
[1743433745381,1.4233,1846.0,1845.9,1.08356]
[1743433746283,3.2078,1846.1,1846.0,1.08351]
[1743433746481,5.71448,1846.3,1845.8,2.709]
[1743433746779,5.71448,1846.3,1846.2,1.08339]
[1743433746780,4.6311,1846.3,1846.2,1.08339]
[1743433746982,5.71448,1846.3,1846.1,1.08343]
[1743433747175,1.08339,1846.2,1846.0,1.08348]
[1743433747375,4.29117,1846.3,1845.8,2.70905]
[1743433747571,3.2078,1846.3,1846.1,1.08341]
[1743433747775,1.4125,1846.2,1846.1,1.08341]
[1743433748376,3.2078,1846.3,1846.2,1.08339]
[1743433749076,4.29102,1846.5,1846.1,4.03161]
[1743433749282,3.2078,1846.5,1846.4,1.08327]
[1743433749489,5.70354,1846.5,1846.4,1.08327]
[1743433749673,4.6203,1846.5,1846.4,1.08327]
[1743433749875,4.58411688,1846.6,1846.5,1.08321]
[1743433750071,0.00811688,1846.6,1846.5,1.08321]
[1743433751377,3.2078,1846.9,1846.8,1.08304]
[1743433751579,3.2078,1846.9,1846.6,5.41568]
[1743433751580,3.2078,1846.9,1846.6,1.4464]
[1743433751884,4.6203,1847.1,1847.0,1.08292]
[1743433752075,1.08293,1847.0,1846.9,1.08293]
[1743433752274,2.48973,1847.0,1846.9,1.08293]
[1743433752474,3.2078,1847.1,1846.7,2.70773]
[1743433752675,1.08298,1846.9,1846.8,0.00811688]
[1743433752871,1.08298,1846.9,1846.8,1.09115688]
[1743433753080,2.48978,1846.9,1846.8,0.00811688]
[1743433753679,2.48978,1846.9,1846.8,1.09115688]
[1743433753883,2.48978,1846.9,1846.8,0.00811688]
[1743433755974,2.48978,1846.9,1846.4,1.08326]
[1743433755975,1.08328,1846.5,1846.4,1.08326]
[1743433756173,4.29108,1846.5,1846.4,1.08326]
[1743433756685,3.2078,1846.5,1846.4,1.08326]
[1743433756878,4.29101,1846.5,1846.4,1.08326]
[1743433757080,5.73861,1846.5,1846.4,1.08326]
[1743433757480,1.08331,1846.4,1846.3,1.08327]
[1743433759590,1.08333,1846.3,1846.2,1.4302]
[1743433759885,4.6554,1846.3,1846.1,1.4175]
[1743433760184,1.08339,1846.2,1846.1,1.4175]
[1743433760485,1.08339,1846.2,1846.1,2.5009]
[1743433760688,2.51559,1846.2,1846.1,1.08345]
[1743433760886,1.08357,1846.0,1845.9,1.08354]
[1743433761082,1.08377,1845.6,1845.5,1.08379]
[1743433761593,5.72371,1845.7,1845.3,6.82168]
[1743433761894,5.72371,1845.7,1845.6,1.08374]
[1743433762379,4.64,1845.7,1845.3,4.11189]
[1743433762690,4.574,1845.9,1845.8,1.08362]
[1743433762885,1.08364,1845.8,1845.7,1.08364]
[1743433763086,1.08364,1845.8,1845.6,1.08369]
[1743433763087,1.08369,1845.7,1845.6,1.08369]
[1743433763287,1.0838,1845.6,1845.5,1.08378]
[1743433763588,2.5632,1845.6,1845.5,1.08378]
[1743433763783,1.4794,1845.6,1845.4,1.08381]
[1743433763989,2.56315,1845.6,1845.5,1.0838]
[1743433764382,5.77095,1845.6,1845.5,1.0838]
[1743433764881,5.77094,1845.6,1845.5,1.0838]
[1743433765082,4.6872,1845.6,1845.5,1.0838]
[1743433765286,3.2078,1845.6,1845.5,1.0838]
[1743433765779,4.1219,1846.0,1845.5,3.5838]
[1743433765780,3.2078,1845.9,1845.5,3.5838]
[1743433765979,3.21591688,1846.1,1846.0,1.08351]
[1743433767485,4.29936688,1846.1,1846.0,1.08351]
[1743433768387,3.21591688,1846.1,1846.0,1.08351]
[1743433768588,0.00811688,1846.1,1846.0,1.08351]
[1743433768988,1.09156688,1846.1,1846.0,1.08351]
[1743433769597,0.00811688,1846.1,1846.0,1.08351]
[1743433769997,1.48391688,1846.1,1846.0,1.08351]
[1743433770399,2.56736688,1846.1,1846.0,1.08351]
[1743433770599,1.48391688,1846.1,1846.0,1.08351]
[1743433770797,0.00811688,1846.1,1846.0,4.29131]
[1743433770992,1.08328,1846.4,1846.3,1.08327]
[1743433771393,1.08334,1846.3,1846.2,1.08333]
[1743433771599,1.08341,1846.2,1846.1,1.0834]
[1743433771901,1.08343,1846.2,1846.1,1.08343]
[1743433772107,2.56729688,1846.3,1846.2,1.08339]
[1743433772309,2.56724688,1846.3,1846.2,1.08339]
[1743433772701,0.00811688,1846.3,1846.2,1.08339]
[1743433773802,0.00811688,1846.3,1846.2,4.29119]
[1743433775010,1.09144688,1846.3,1846.2,1.08339]
[1743433775209,2.56084688,1846.3,1846.2,1.08339]
[1743433775708,1.47751688,1846.3,1846.2,1.08339]
[1743433776104,2.56084688,1846.3,1846.2,1.08339]
[1743433776504,1.08345,1846.1,1846.0,1.09156688]
[1743433776697,1.08344,1846.2,1846.1,1.08344]
[1743433777001,0.00811688,1846.3,1846.2,1.08339]
[1743433777509,1.08341,1846.2,1846.1,1.08339]
[1743433777811,1.08345,1846.1,1846.0,0.00811688]
[1743433778208,1.08345,1846.1,1846.0,1.09162688]
[1743433778504,1.08345,1846.1,1846.0,0.00811688]
[1743433779404,4.29125,1846.1,1846.0,0.00811688]
[1743433781120,4.29125,1846.1,1846.0,1.09162688]
[1743433781406,11.41012688,1846.3,1846.2,1.08339]
[1743433781407,0.00811688,1846.3,1846.2,1.08339]
[1743433783514,0.00811688,1846.3,1846.2,4.29119]
[1743433783711,2.49571,1846.7,1846.6,1.08315]
[1743433783913,2.49571,1846.7,1846.3,2.8418]
[1743433783914,1.4126,1846.7,1846.3,2.8418]
[1743433784107,1.4126,1846.7,1846.3,5.55012]
[1743433784416,1.08321,1846.6,1846.5,1.0832]
[1743433784615,1.08321,1846.5,1846.4,2.56482]
[1743433784817,1.08324,1846.5,1846.4,1.08324]
[1743433786310,1.42071688,1846.7,1846.3,2.8967]
[1743433786511,1.08327,1846.4,1846.3,3.97997]
[1743433786711,1.08327,1846.4,1846.3,1.08327]
[1743433786913,3.2078,1846.6,1846.2,5.77274]
[1743433786914,1.08333,1846.3,1846.2,5.77274]
[1743433787115,1.08345,1846.1,1846.0,0.00811688]
[1743433787611,1.08345,1846.1,1846.0,1.09162688]
[1743433788209,2.57285,1846.1,1846.0,1.09162688]
[1743433789319,2.57285,1846.1,1846.0,0.00811688]
[1743433790019,2.57285,1846.1,1846.0,1.09162688]
[1743433790816,2.57285,1846.1,1845.7,1.08368]
[1743433790817,1.08368,1845.8,1845.7,1.08368]
[1743433791120,1.08368,1845.7,1845.6,4.29151]
[1743433791612,1.4372,1845.9,1845.6,5.91714]
[1743433791814,2.52079,1845.9,1845.8,1.08362]
[1743433792013,1.4372,1845.9,1845.6,3.21591688]
[1743433792212,1.4372,1845.9,1845.8,1.08362]
[1743433792414,1.08362,1845.8,1845.7,2.48795]
[1743433792616,1.08368,1845.7,1845.6,0.00811688]
[1743433792817,1.4372,1845.9,1845.7,1.08366]
[1743433793022,1.08366,1845.8,1845.7,1.08366]
[1743433793918,1.08366,1845.8,1845.7,1.3901]
[1743433794121,1.4372,1845.9,1845.6,1.09181688]
[1743433794122,1.08368,1845.7,1845.6,1.09181688]
[1743433794422,2.54208,1845.7,1845.6,0.00811688]
[1743433794811,3.92748,1845.7,1845.6,0.00811688]
[1743433795323,1.08386,1845.4,1845.3,1.08387]
[1743433795725,2.54224,1845.5,1845.4,1.08386]
[1743433796421,2.54224,1845.5,1845.2,2.7642]
[1743433796422,1.08392,1845.3,1845.2,1.08398]
[1743433796923,1.08391,1845.4,1845.3,1.08392]
[1743433797123,1.08394,1845.3,1845.2,1.08395]
[1743433797323,2.57394,1845.3,1845.2,1.08395]
[1743433797522,2.57397,1845.3,1845.2,1.08398]
[1743433797823,1.49,1845.3,1845.2,1.08398]
[1743433798722,1.49,1845.3,1845.2,2.52978]
[1743433799023,2.57392,1845.3,1845.2,2.52978]
[1743433799421,1.49,1845.3,1844.9,0.7109006]
[1743433799617,1.08406,1845.1,1845.0,2.57196]
[1743433800021,5.91782,1845.2,1844.8,3.2078]
[1743433800224,1.3859,1845.0,1844.9,1.08415]
[1743433800522,1.08403,1845.1,1844.9,1.4879]
[1743433800726,1.08409,1845.0,1844.9,1.4879]
[1743433801024,1.08392,1845.3,1845.0,2.71024]
[1743433801216,10.01193,1845.5,1845.2,1.08394]
[1743433801417,1.3859,1845.4,1845.1,1.4879]
[1743433801614,4.09556,1845.4,1845.1,1.08402]
[1743433801922,1.08403,1845.1,1845.0,3.2078]
[1743433802112,1.08403,1845.1,1845.0,4.29186]
[1743433802313,1.08402,1845.2,1845.1,1.08402]
[1743433803023,1.08403,1845.1,1845.0,4.29187]
[1743433803226,2.52443,1845.1,1845.0,1.08407]
[1743433803528,2.52446,1845.1,1845.0,1.08409]
[1743433803920,1.08409,1845.0,1844.9,2.44703]
[1743433804125,2.52449,1845.0,1844.9,1.08413]
[1743433804623,2.52454,1845.0,1844.9,1.08415]
[1743433805026,1.4404,1845.0,1844.7,4.5787]
[1743433805222,1.08421,1844.8,1844.7,3.81801]
[1743433805418,1.4404,1845.0,1844.9,1.08415]
[1743433805825,1.08406,1845.1,1845.0,1.08409]
[1743433806029,2.54836,1845.1,1845.0,1.08409]
[1743433806323,2.54836,1845.1,1844.8,1.08419]
[1743433806324,1.08421,1844.9,1844.8,1.08419]
[1743433806724,1.08411,1845.0,1844.9,1.08409]
[1743433806929,1.4643,1845.0,1844.9,1.08409]
[1743433807833,2.54839,1845.0,1844.9,1.08409]
[1743433808025,1.08415,1844.9,1844.8,2.56776]
[1743433808225,1.4643,1844.9,1844.8,2.56776]
[1743433808628,1.08406,1845.1,1845.0,1.08409]
[1743433808929,1.425,1845.1,1845.0,1.08409]
[1743433809136,4.566,1845.3,1845.2,1.08398]
[1743433809432,5.64992,1845.3,1845.2,1.08398]
[1743433809635,1.08392,1845.4,1845.3,1.0839]
[1743433809930,1.08387,1845.4,1845.3,1.08387]
[1743433810534,2.50887,1845.4,1845.3,2.48917]
[1743433810925,2.50887,1845.4,1845.3,1.4053]
[1743433811125,2.50887,1845.4,1844.8,1.08415]
[1743433811126,7.1328,1845.4,1844.8,1.08415]
[1743433811334,1.08407,1845.1,1845.0,1.08407]
[1743433811932,1.08409,1845.0,1844.9,2.48941]
[1743433812125,1.376,1845.2,1845.1,1.08403]
[1743433812434,2.45998,1845.2,1845.1,1.08403]
[1743433812835,1.376,1845.2,1845.1,1.08403]
[1743433813430,2.45998,1845.2,1845.1,1.08403]
[1743433813830,1.376,1845.2,1845.1,1.08403]
[1743433814136,1.376,1845.2,1845.1,2.49743]
[1743433814324,2.45998,1845.2,1845.1,2.49743]
[1743433814526,1.376,1845.2,1845.1,1.08403]
[1743433814727,1.376,1845.2,1845.1,2.45923]
[1743433814923,4.5844,1845.5,1845.4,1.08386]
[1743433815127,6.0345,1845.5,1845.4,1.08386]
[1743433815323,0.00811688,1845.6,1845.5,1.0838]
[1743433815535,1.45821688,1845.6,1845.5,1.0838]
[1743433815740,0.00811688,1845.6,1845.5,4.2916]
[1743433816130,0.00811688,1845.6,1845.5,1.0838]
[1743433816430,0.00811688,1845.6,1845.3,2.45909]
[1743433816631,1.45821688,1845.6,1845.3,1.3752]
[1743433816835,1.0838,1845.5,1845.4,1.3752]
[1743433817241,1.45821688,1845.6,1845.5,1.0838]
[1743433817242,2.54197688,1845.6,1845.5,1.0838]
[1743433817630,1.0838,1845.5,1845.4,2.45901]
[1743433817835,2.4503,1845.5,1845.4,2.45901]
[1743433818038,1.3665,1845.5,1845.4,1.08386]
[1743433818334,1.08388,1845.4,1845.3,1.08387]
[1743433818732,3.2078,1845.4,1845.0,1.3769]
[1743433818928,2.45046,1845.3,1845.2,1.08398]
[1743433819131,1.3665,1845.3,1845.2,1.08398]
[1743433819536,2.45042,1845.3,1845.2,1.08398]
[1743433819740,1.3665,1845.3,1845.2,1.08398]
[1743433820241,2.45042,1845.3,1845.2,1.08398]
[1743433820439,2.45046,1845.3,1845.2,1.08398]
[1743433821135,2.45042,1845.3,1845.2,1.08398]
[1743433821537,1.3665,1845.3,1845.2,1.08398]
[1743433821736,0.00811688,1845.6,1845.1,4.17195]
[1743433821936,2.53512,1845.5,1845.4,1.08386]
[1743433822141,1.08389,1845.4,1845.3,1.0839]
[1743433822437,2.5352,1845.4,1845.3,1.08392]
[1743433822837,1.4513,1845.4,1845.3,1.08392]
[1743433823142,1.09185688,1845.6,1845.5,1.0838]
[1743433823342,1.45941688,1845.6,1845.5,1.0838]
[1743433824040,1.45941688,1845.6,1845.5,2.5293]
[1743433825846,1.45941688,1845.6,1845.5,3.2404341]
[1743433825847,0.00811688,1845.6,1845.5,3.2404341]
[1743433826149,5.91629,1846.2,1845.5,3.2404341]
[1743433826150,3.2078,1846.2,1845.5,11.4156141]
[1743433826341,1.3721,1846.4,1846.3,1.08332]
[1743433826639,2.45541,1846.4,1846.3,1.08333]
[1743433826829,1.3721,1846.4,1846.3,1.08333]
[1743433827735,0.00811688,1846.5,1846.4,1.08327]
[1743433827939,0.00811688,1846.5,1846.4,2.53517]
[1743433828138,1.5031,1846.8,1846.7,1.08309]
[1743433828542,2.58614,1846.8,1846.7,1.08309]
[1743433828741,1.5031,1846.8,1846.6,2.8984]
[1743433828940,2.58616,1846.8,1846.6,3.98152]
[1743433829143,1.5031,1846.8,1846.7,1.08309]
[1743433829443,0.00811688,1846.9,1846.8,1.08304]
[1743433829739,0.76503,1847.1,1847.0,1.08292]
[1743433831838,1.84793,1847.1,1846.9,4.29076]
[1743433832039,1.08299,1846.9,1846.7,1.08306]
[1743433832237,9.1538,1846.8,1846.2,3.21591688]
[1743433832439,10.23686,1846.8,1846.6,1.08313]
[1743433832846,1.08311,1846.7,1846.5,1.08318]
[1743433833045,1.389,1846.6,1846.5,1.08318]
[1743433834751,4.6705,1847.0,1846.9,1.08298]
[1743433834752,1.4627,1847.0,1846.9,1.08298]
[1743433835055,0.76503,1847.1,1847.0,1.08292]
[1743433835350,1.84789,1847.1,1846.9,1.08294]
[1743433835551,0.76503,1847.1,1847.0,1.08292]
[1743433836146,2.22873,1847.1,1847.0,1.08292]
[1743433837146,0.76503,1847.1,1847.0,1.08292]
[1743433837354,0.76503,1847.1,1847.0,2.48922]
[1743433837539,0.00811688,1847.2,1847.1,1.08286]
[1743433837744,0.00811688,1847.2,1847.1,4.29066]
[1743433839254,0.00811688,1847.2,1847.0,1.08287]
[1743433839255,1.09093688,1847.2,1847.0,1.08287]
[1743433839454,1.09093688,1847.2,1846.7,3.2078]
[1743433839455,1.08307,1846.8,1846.7,3.2078]
[1743433839650,1.08322,1846.5,1846.3,4.29111]
[1743433839957,4.6577,1846.7,1846.2,0.00811688]
[1743433840252,1.4499,1846.4,1846.2,0.00811688]
[1743433840452,2.53319,1846.4,1846.2,1.09148688]
[1743433840858,1.4499,1846.4,1846.3,1.08333]
[1743433841051,2.53317,1846.4,1846.2,1.09146688]
[1743433841353,1.4499,1846.4,1846.3,1.08333]
[1743433841556,3.2078,1847.0,1846.3,2.70833]
[1743433841854,1.4499,1846.7,1846.3,4.05133]
[1743433842061,1.4499,1846.7,1846.6,1.08315]
[1743433842357,1.08316,1846.6,1846.5,1.0832]
[1743433842560,1.4499,1846.7,1846.6,1.08315]
[1743433842751,1.08307,1846.8,1846.6,1.08315]
[1743433842947,1.08307,1846.8,1846.4,3.2078]
[1743433842948,4.553,1847.0,1846.8,1.08303]
[1743433843155,3.9843,1847.1,1846.6,5.91565]
[1743433843354,1.08292,1847.0,1846.6,5.91565]
[1743433843561,3.9843,1847.1,1846.9,1.08295]
[1743433843869,1.08298,1846.9,1846.8,1.08301]
[1743433844259,2.9014,1847.1,1846.8,1.08302]
[1743433844577,1.08295,1847.0,1846.9,1.08298]
[1743433844866,1.4569,1847.1,1847.0,1.08292]
[1743433847564,1.4569,1847.1,1847.0,2.46742]
[1743433847865,2.53977,1847.1,1846.9,3.2078]
[1743433848068,2.53977,1847.1,1847.0,1.08292]
[1743433848268,1.4569,1847.1,1847.0,1.08292]
[1743433848867,1.08288,1847.1,1847.0,1.0829]
[1743433849066,55.68793688,1847.2,1847.1,1.08286]
[1743433849369,55.68793688,1847.2,1847.0,1.08289]
[1743433849370,0.00811688,1847.2,1847.0,1.08289]
[1743433849569,0.00811688,1847.2,1846.9,4.6342]
[1743433849570,0.00811688,1847.2,1846.9,3.2078]
[1743433849769,1.08312,1846.7,1846.5,3.2078]
[1743433849964,10.46497,1847.1,1846.6,1.08312]
[1743433850161,4.6011,1846.9,1846.3,1.08329]
[1743433850360,3.2078,1846.6,1846.2,0.00811688]
[1743433850563,1.08333,1846.3,1846.2,1.09150688]
[1743433850766,1.08333,1846.3,1846.2,0.00811688]
[1743433850964,2.70859,1846.2,1845.5,3.2078]
[1743433851173,3.2078,1845.9,1845.3,3.2078]
[1743433851370,5.8926,1845.8,1845.3,3.2078]
[1743433851566,4.55,1845.7,1845.2,3.2078]
[1743433851772,1.08377,1845.6,1845.2,3.2078]
[1743433851971,1.3426,1845.8,1845.4,3.2078]
[1743433852167,0.00811688,1845.6,1845.4,3.2078]
[1743433852369,0.00811688,1845.6,1845.2,5.92577688]
[1743433852569,0.00811688,1845.6,1845.4,4.29161]
[1743433852770,1.08392,1845.3,1845.2,0.00811688]
[1743433852969,4.549,1845.3,1845.2,0.00811688]
[1743433853274,4.549,1845.4,1845.3,1.08392]
[1743433853464,4.549,1845.4,1845.2,0.00811688]
[1743433853669,1.08392,1845.3,1845.2,0.00811688]
[1743433854067,3.80542,1845.3,1845.2,0.00811688]
[1743433854270,3.80542,1845.3,1844.8,3.2078]
[1743433854271,1.08413,1845.0,1844.8,3.2078]
[1743433854466,1.0843,1844.7,1844.4,3.2078]
[1743433854666,1.08431,1844.7,1844.4,3.2078]
[1743433854865,4.55,1844.6,1844.4,3.2078]
[1743433855070,1.08439,1844.5,1844.4,3.2078]
[1743433855275,1.08449,1844.4,1844.0,3.2078]
[1743433855469,5.93701688,1844.6,1844.3,0.00811688]
[1743433855668,5.93701688,1844.6,1844.5,1.08439]
[1743433855864,0.00811688,1844.6,1844.5,1.08439]
[1743433856363,0.00811688,1844.6,1844.5,2.46779]
[1743433856968,0.00811688,1844.6,1844.5,1.08439]
[1743433858070,0.00811688,1844.6,1844.4,3.2078]
[1743433858071,0.00811688,1844.6,1844.4,4.29222]
[1743433858476,1.44851688,1844.6,1844.5,1.08439]
[1743433859176,1.44851688,1844.6,1844.4,1.0844]
[1743433859479,1.44851688,1844.6,1844.3,1.09258688]
[1743433859782,4.551,1844.5,1844.3,0.00811688]
[1743433860078,1.4404,1844.4,1844.3,1.09261688]
[1743433861180,0.00811688,1844.6,1844.5,1.08439]
[1743433861376,0.00811688,1844.6,1844.5,4.29219]
[1743433861578,6.88e-06,1844.6,1844.5,6.79219]
[1743433861772,4.55,1845.3,1844.5,7.1007]
[1743433861972,1.4947,1845.3,1845.2,1.08398]
[1743433862884,54.631,1845.7,1845.6,1.08374]
[1743433863179,1.50281688,1845.8,1845.7,1.08368]
[1743433863371,0.00811688,1845.8,1845.7,1.08368]
[1743433864690,0.00811688,1845.8,1845.7,4.29148]
[1743433864887,6.88e-06,1845.8,1845.7,4.29148]
[1743433870192,6.88e-06,1845.8,1845.7,6.79148]
[1743433870376,6.88e-06,1845.8,1845.7,4.29148]
[1743433870880,6.88e-06,1845.8,1845.7,5.73848]
[1743433871084,6.88e-06,1845.8,1845.5,0.00811688]